bitfinex/quotes_SOLUSD_20260117
["timestamp","ask_amount","ask_price","bid_price","bid_amount"]
[1768624893384,1.5536794,144.2,144.16,10.59391687]
[1768624894802,1.5536794,144.2,144.16,8.52506549]
[1768624895004,1.5536794,144.2,144.16,10.59391687]
[1768624897205,1.5536794,144.19,144.16,10.59391687]
[1768624915124,1.6034065,144.18,144.15,8.49932121]
[1768624915320,1.6034065,144.18,144.15,10.56817259]
[1768624919113,1.6034065,144.18,144.15,8.49932121]
[1768624922525,1.6034065,144.18,144.13,6.93787444]
[1768624922526,1.6034065,144.17,144.13,6.93787444]
[1768624922827,1.6034065,144.17,144.13,10.56892811]
[1768624923030,1.6034065,144.17,144.14,9.0063915]
[1768624924230,1.6034065,144.17,144.15,2.06885138]
[1768624925339,1.6034065,144.17,144.14,8.49974241]
[1768624925523,1.6034065,144.17,144.15,2.06885138]
[1768624925723,1.6034065,144.17,144.14,10.56859379]
[1768624929539,1.6034065,144.17,144.14,3.63105367]
[1768624930529,1.6034065,144.17,144.14,10.56860315]
[1768624935348,1.6034065,144.17,144.14,10.56896348]
[1768624937044,1.6034065,144.17,144.15,2.06921171]
[1768624943956,1.6034065,144.17,144.14,10.56896348]
[1768624945054,1.6034065,144.17,144.14,9.00676119]
[1768624949045,1.59254757,144.16,144.13,10.6464857]
[1768624949356,1.56254758,144.16,144.13,10.6464857]
[1768624955867,1.53254759,144.16,144.13,10.6464857]
[1768624956044,1.53254759,144.16,144.13,9.00734866]
[1768624956443,1.53254759,144.16,144.13,10.65714151]
[1768624963758,1.53254759,144.16,144.14,9.00681168]
[1768624964984,1.53254759,144.16,144.14,6.93759997]
[1768624965276,1.53254759,144.16,144.14,9.00681168]
[1768624968582,1.53254759,144.16,144.14,6.93759997]
[1768624972086,1.53254759,144.16,144.13,6.93797963]
[1768624974207,1.53254759,144.16,144.13,9.00719134]
[1768624975022,1.53254759,144.16,144.13,6.93797963]
[1768624989733,1.53254759,144.16,144.13,8.51619376]
[1768625020449,1.53254759,144.16,144.13,6.93797963]
[1768625021255,1.53254759,144.16,144.13,10.5323059]
[1768625023050,1.53254759,144.16,144.13,6.93797963]
[1768625033062,1.53254759,144.16,144.13,10.5865961]
[1768625040202,1.53254759,144.16,144.13,8.51709832]
[1768625041490,1.53254759,144.16,144.13,10.5865961]
[1768625042890,1.53254759,144.16,144.13,8.51709832]
[1768625044098,8.52852204,144.18,144.14,1.57911869]
[1768625044394,22.39912962,144.19,144.16,1.57911869]
[1768625044568,1.592527,144.19,144.16,1.57911869]
[1768625044770,1.592527,144.19,144.17,1.57911869]
[1768625045382,1.592527,144.19,144.16,3.64861647]
[1768625046679,1.592527,144.19,144.16,1.57911869]
[1768625046881,6.93541137,144.19,144.16,1.57911869]
[1768625047180,1.592527,144.18,144.15,10.58538955]
[1768625049811,1.592527,144.18,144.16,1.57911869]
[1768625067006,49.84610095,144.24,144.16,1.57911869]
[1768625067007,1.5776929,144.23,144.18,1.67919869]
[1768625067197,1.5776929,144.25,144.21,3.74825821]
[1768625067384,1.5776929,144.25,144.22,1.67919869]
[1768625067588,24.25670524,144.29,144.24,3.74825821]
[1768625067589,1.5776929,144.28,144.24,3.74825821]
[1768625067796,1.5776929,144.28,144.25,1.67919869]
[1768625068107,1.5776929,144.28,144.25,1.64796108]
[1768625068407,1.5776929,144.28,144.25,16.79919869]
[1768625068698,1.5776929,144.28,144.25,1.61919869]
[1768625069103,8.50890972,144.28,144.25,1.61919869]
[1768625071683,1.61704849,144.27,144.23,24.1821222]
[1768625071879,1.61704849,144.26,144.22,8.56010202]
[1768625072401,8.54826531,144.27,144.23,6.93328384]
[1768625072604,1.61704849,144.28,144.25,3.69539745]
[1768625072806,1.61704849,144.29,144.26,3.69539745]
[1768625073105,10.1653138,144.29,144.26,1.62633793]
[1768625073286,1.61704849,144.29,144.26,1.62633793]
[1768625079911,1.61704849,144.29,144.25,10.62747847]
[1768625080114,1.61704849,144.28,144.25,6.93208102]
[1768625080794,3.68610801,144.28,144.24,8.55905636]
[1768625080997,1.61704849,144.27,144.24,8.55905636]
[1768625084510,1.61704849,144.27,144.24,6.93271843]
[1768625084721,1.61704849,144.27,144.24,8.55905636]
[1768625085518,1.61704849,144.27,144.24,6.93271843]
[1768625086525,6.93048927,144.28,144.27,1.62633793]
[1768625086815,1.61704849,144.29,144.25,2.06905952]
[1768625087024,8.54976692,144.29,144.25,2.06905952]
[1768625087723,8.54976692,144.29,144.25,9.00116095]
[1768625088810,1.61704849,144.29,144.25,10.62749888]
[1768625090126,1.61704849,144.29,144.26,1.62633793]
[1768625091025,21.41055332,144.3,144.27,1.62633793]
[1768625091522,1.61704849,144.29,144.26,8.59791684]
[1768625092908,1.61704849,144.29,144.26,6.93173186]
[1768625094226,1.67267357,144.28,144.25,6.93228601]
[1768625094430,1.67267357,144.28,144.26,6.93192145]
[1768625095830,1.67267357,144.28,144.25,6.93229022]
[1768625100319,1.67267357,144.28,144.25,8.5984752]
[1768625101343,1.67267357,144.28,144.25,10.66753472]
[1768625101635,1.67267357,144.29,144.26,1.66618498]
[1768625101813,1.67267357,144.29,144.25,10.66753472]
[1768625102012,1.67267357,144.29,144.25,9.00134974]
[1768625102323,1.67267357,144.29,144.26,1.66618498]
[1768625103241,1.67267357,144.29,144.25,10.66753472]
[1768625104339,1.67267357,144.28,144.25,8.5984752]
[1768625105829,1.67267357,144.28,144.25,10.66753472]
[1768625106526,1.67267357,144.28,144.25,8.5984752]
[1768625109836,1.67267357,144.28,144.25,10.66753472]
[1768625112745,1.67267357,144.28,144.25,8.5984752]
[1768625113043,1.67267357,144.27,144.24,8.59890133]
[1768625113227,1.67267357,144.27,144.24,10.66796085]
[1768625115229,1.67267357,144.27,144.23,26.3348903]
[1768625115431,1.67267357,144.27,144.24,2.06905952]
[1768625117355,1.67267357,144.27,144.24,8.99905061]
[1768625117855,1.67267357,144.27,144.24,6.93256481]
[1768625131157,1.62406466,144.26,144.22,3.70328834]
[1768625131336,3.69055046,144.26,144.21,3.70328834]
[1768625131536,1.62406466,144.25,144.21,3.70328834]
[1768625132358,1.62406466,144.25,144.22,6.93380392]
[1768625139173,1.62406466,144.25,144.22,9.00028972]
[1768625140440,1.62406466,144.24,144.21,10.63743524]
[1768625140647,1.62406466,144.24,144.21,3.70328834]
[1768625140844,1.62406466,144.24,144.21,1.63680254]
[1768625141457,1.62406466,144.24,144.2,10.63791238]
[1768625141662,8.55708693,144.24,144.2,10.63791238]
[1768625141863,1.62406466,144.23,144.2,10.63791238]
[1768625143170,1.59406467,144.23,144.2,10.63791238]
[1768625143868,1.56406468,144.23,144.2,10.63791238]
[1768625149373,1.56406468,144.23,144.2,9.00110984]
[1768625150168,1.56406468,144.23,144.19,10.63847866]
[1768625150169,1.62406466,144.22,144.19,10.63847866]
[1768625150471,1.56406468,144.22,144.19,6.93519032]
[1768625155371,1.53406469,144.22,144.19,6.93519032]
[1768625157472,6.93386411,144.22,144.18,1.63680254]
[1768625157675,9.00034991,144.22,144.18,8.57255529]
[1768625158054,9.00034991,144.22,144.18,1.63680254]
[1768625158793,9.00034991,144.22,144.17,8.48828289]
[1768625159680,1.54756493,144.2,144.17,8.48828289]
[1768625159870,1.51756494,144.2,144.17,8.48828289]
[1768625160982,1.51756494,144.2,144.17,10.55476869]
[1768625161185,6.93385766,144.22,144.19,1.55217476]
[1768625161997,8.48142259,144.22,144.19,1.55217476]
[1768625170085,1.54756493,144.21,144.17,10.55474886]
[1768625170284,1.54756493,144.2,144.17,1.55217476]
[1768625171276,1.51756494,144.2,144.17,1.55217476]
[1768625172074,8.97146021,144.2,144.15,8.48919972]
[1768625173294,1.54756493,144.19,144.15,8.48919972]
[1768625173480,1.51756494,144.19,144.15,8.48919972]
[1768625173880,2.0664858,144.19,144.15,8.48919972]
[1768625175291,2.0664858,144.2,144.15,8.48919972]
[1768625175489,1.54756493,144.19,144.15,8.48919972]
[1768625176789,1.54756493,144.19,144.14,10.55632919]
[1768625176992,1.54756493,144.18,144.14,10.55632919]
[1768625177289,1.54756493,144.18,144.14,10.55899373]
[1768625179594,1.51756494,144.18,144.14,10.55899373]
[1768625180893,8.45341793,144.18,144.15,1.55217476]
[1768625181078,6.93585299,144.18,144.14,6.93766863]
[1768625181274,6.93585299,144.18,144.14,10.55899373]
[1768625181698,1.55248773,144.17,144.14,10.55899373]
[1768625181996,1.52248774,144.17,144.14,10.55899373]
[1768625182196,1.52248774,144.17,144.14,9.00681897]
[1768625182786,1.52248774,144.17,144.14,10.60214397]
[1768625186903,1.49248775,144.17,144.14,10.60214397]
[1768625187106,6.93585299,144.18,144.15,1.595325]
[1768625187610,6.93549326,144.19,144.16,1.595325]
[1768625188817,6.93481276,144.2,144.16,1.595325]
[1768625188995,1.55248773,144.19,144.16,1.595325]
[1768625190213,8.48803051,144.19,144.16,1.595325]
[1768625194395,8.45803052,144.19,144.16,1.595325]
[1768625195009,8.45803052,144.19,144.15,9.0063502]
[1768625195010,6.93554278,144.19,144.15,10.52390065]
[1768625195490,24.26679608,144.23,144.15,10.52390065]
[1768625195692,2.06915034,144.2,144.15,10.52390065]
[1768625196612,1.67188236,144.19,144.15,10.52390065]
[1768625197711,8.60748265,144.19,144.16,1.51755045]
[1768625200407,1.67188236,144.18,144.15,1.51755045]
[1768625201395,1.64188237,144.18,144.15,1.51755045]
[1768625201807,8.57769468,144.18,144.15,1.51755045]
[1768625202909,6.93581231,144.18,144.14,8.45503269]
[1768625203112,6.93581231,144.18,144.14,10.52418303]
[1768625203299,6.93581231,144.18,144.14,9.00663258]
[1768625203500,6.93581231,144.18,144.15,1.51755045]
[1768625203501,8.60769467,144.18,144.15,1.51755045]
[1768625203912,1.67188236,144.18,144.15,6.93715269]
[1768625204118,8.60736511,144.19,144.16,1.51755045]
[1768625215343,5.18445565,144.18,144.16,1.51755045]
[1768625215645,1.61590583,144.18,144.16,1.51755045]
[1768625217936,1.58590584,144.18,144.16,1.51755045]
[1768625219946,1.61590583,144.21,144.17,1.61768968]
[1768625220120,6.80220057,144.2,144.17,1.61768968]
[1768625220320,5.18629474,144.19,144.17,1.61768968]
[1768625220521,1.61590583,144.2,144.17,1.61768968]
[1768625220721,5.18651171,144.19,144.17,1.61768968]
[1768625220940,1.61590583,144.2,144.17,1.61768968]
[1768625221144,5.18651045,144.19,144.17,1.61768968]
[1768625221322,8.55085244,144.2,144.17,1.61768968]
[1768625221521,5.18618228,144.19,144.17,1.61768968]
[1768625221725,8.55085244,144.2,144.17,1.61768968]
[1768625221918,5.18616017,144.19,144.17,1.61768968]
[1768625222118,8.55085244,144.2,144.17,1.61768968]
[1768625222342,5.1861589,144.19,144.17,1.61768968]
[1768625222542,8.55085244,144.2,144.17,1.61768968]
[1768625222724,6.8017191,144.19,144.17,1.61768968]
[1768625223047,1.61590583,144.19,144.17,1.61768968]
[1768625223412,1.61590583,144.19,144.15,2.06915034]
[1768625223738,1.61590583,144.18,144.15,2.06915034]
[1768625223920,1.58590584,144.18,144.15,2.06915034]
[1768625224122,1.58590584,144.18,144.15,3.68684002]
[1768625225515,6.93501978,144.2,144.16,9.00588729]
[1768625225725,5.1855179,144.19,144.17,1.61768968]
[1768625225930,8.55092561,144.2,144.17,1.61768968]
[1768625226222,5.18560971,144.19,144.17,1.61768968]
[1768625226431,8.55092561,144.2,144.17,1.61768968]
[1768625226730,5.18560786,144.19,144.17,1.61768968]
[1768625226914,8.55092561,144.2,144.17,3.68684002]
[1768625227120,5.18561536,144.19,144.17,3.68684002]
[1768625227328,8.55092561,144.2,144.17,3.68684002]
[1768625227516,5.1864991,144.19,144.17,3.68684002]
[1768625227720,8.55092561,144.2,144.17,3.68684002]
[1768625228020,5.18652779,144.19,144.17,3.68684002]
[1768625228233,8.55092561,144.2,144.17,3.68684002]
[1768625228427,5.18662555,144.19,144.17,3.68684002]
[1768625228729,8.55092561,144.2,144.17,3.68684002]
[1768625229036,5.18672606,144.19,144.17,1.61768968]
[1768625229241,8.55092561,144.2,144.17,1.61768968]
[1768625229441,5.18672759,144.19,144.17,1.61768968]
[1768625229622,8.55092561,144.2,144.17,1.61768968]
[1768625229823,5.18631081,144.19,144.17,1.61768968]
[1768625230122,8.55092561,144.2,144.17,1.61768968]
[1768625230323,5.18631081,144.19,144.17,1.61768968]
[1768625230522,8.55092561,144.2,144.17,1.61768968]
[1768625230722,5.18646218,144.19,144.17,1.61768968]
[1768625230936,8.55092561,144.2,144.17,1.61768968]
[1768625231139,5.18646344,144.19,144.17,3.68684002]
[1768625231330,8.55092561,144.2,144.17,3.68684002]
[1768625231530,5.1870993,144.19,144.17,3.68684002]
[1768625231731,8.55092561,144.2,144.17,3.68684002]
[1768625231923,5.18709493,144.19,144.17,3.68684002]
[1768625232125,8.55092561,144.2,144.17,3.68684002]
[1768625232322,5.18709493,144.19,144.17,3.68684002]
[1768625232537,1.61590583,144.19,144.17,2.06915034]
[1768625232738,1.58590584,144.19,144.17,2.06915034]
[1768625233043,1.58590584,144.19,144.16,10.62357697]
[1768625238247,1.58590584,144.19,144.16,8.55442663]
[1768625238855,1.55590585,144.19,144.16,8.55442663]
[1768625239156,1.55590585,144.19,144.16,6.93673695]
[1768625239453,1.55590585,144.19,144.16,8.55442663]
[1768625241055,1.55590585,144.19,144.16,10.62286596]
[1768625243462,1.59150044,144.21,144.18,1.62259948]
[1768625243650,1.59150044,144.21,144.18,3.69103881]
[1768625243868,1.59150044,144.21,144.18,2.06843933]
[1768625244054,1.59150044,144.21,144.19,1.62259948]
[1768625244242,1.59150044,144.22,144.19,1.62259948]
[1768625244442,6.77683091,144.21,144.19,1.62259948]
[1768625244755,1.59150044,144.21,144.19,1.62259948]
[1768625247645,6.93373483,144.23,144.19,1.62259948]
[1768625247846,1.59150044,144.22,144.19,1.62259948]
[1768625248571,1.59150044,144.22,144.18,10.62644246]
[1768625253268,1.51789028,144.21,144.17,6.93604167]
[1768625253566,1.51789028,144.2,144.16,8.61403366]
[1768625253778,1.51789028,144.19,144.16,6.93672796]
[1768625253986,1.48789029,144.19,144.16,6.93672796]
[1768625259090,1.51789028,144.18,144.15,8.61452578]
[1768625259283,1.48789029,144.18,144.15,10.68296511]
[1768625261668,1.4578903,144.18,144.15,10.68296511]
[1768625263783,1.4578903,144.18,144.16,2.06843933]
[1768625264288,1.4578903,144.18,144.16,9.00501724]
[1768625265487,1.51789028,144.19,144.16,10.68251885]
[1768625266481,1.51789028,144.19,144.16,8.61407952]
[1768625266788,1.51789028,144.19,144.16,10.68251885]
[1768625268286,1.48789029,144.19,144.16,10.68251885]
[1768625269197,6.93502688,144.2,144.17,1.67750161]
[1768625269894,6.93502688,144.2,144.16,9.00501724]
[1768625270392,1.51789028,144.19,144.16,6.93657791]
[1768625274297,1.51789028,144.19,144.16,10.66891805]
[1768625276896,1.51789028,144.19,144.16,9.00501724]
[1768625277096,1.52065006,144.2,144.18,1.66390081]
[1768625279695,24.26847871,144.22,144.18,1.66390081]
[1768625279878,1.52065006,144.21,144.19,1.66390081]
[1768625281512,6.93385106,144.22,144.19,1.66390081]
[1768625281720,8.45450112,144.22,144.19,1.66390081]
[1768625287421,1.52065006,144.21,144.19,1.66390081]
[1768625287624,1.52065006,144.21,144.18,1.66390081]
[1768625289507,8.45504114,144.21,144.18,1.66390081]
[1768625291716,8.45504114,144.21,144.17,6.93608819]
[1768625292023,1.52065006,144.2,144.17,6.93608819]
[1768625299336,1.52065006,144.2,144.17,8.599989]
[1768625300235,1.52065006,144.2,144.17,6.93608819]
[1768625305737,1.49065007,144.2,144.17,6.93608819]
[1768625309639,1.57324373,144.19,144.16,8.60050528]
[1768625310236,1.57324373,144.19,144.16,6.93660447]
[1768625310436,6.93495364,144.2,144.16,1.66073124]
[1768625310634,6.7583216,144.19,144.16,1.66073124]
[1768625310821,1.57324373,144.19,144.16,1.66073124]
[1768625311224,1.57324373,144.19,144.16,3.72934959]
[1768625311531,8.50860341,144.19,144.16,3.72934959]
[1768625313041,8.47860342,144.19,144.16,3.72934959]
[1768625314140,8.47860342,144.19,144.16,1.66073124]
[1768625318923,1.64404529,144.18,144.15,9.00556455]
[1768625319123,1.6140453,144.18,144.15,9.00556455]
[1768625319548,1.6140453,144.18,144.15,10.56153311]
[1768625320526,1.6140453,144.18,144.16,1.55596856]
[1768625322824,25.91588995,144.2,144.16,1.55596856]
[1768625323022,24.27184466,144.2,144.16,1.55596856]
[1768625323228,1.64404529,144.19,144.16,1.55596856]
[1768625326847,1.64404529,144.19,144.16,3.62458691]
[1768625331052,1.64404529,144.19,144.17,1.55596856]
[1768625334655,1.64404529,144.19,144.16,9.0052147]
[1768625334860,1.64404529,144.19,144.16,10.52342735]
[1768625337673,1.64404529,144.19,144.16,8.454809]
[1768625339466,6.93481276,144.2,144.17,1.51821265]
[1768625339861,8.5631225,144.21,144.18,1.51821265]
[1768625341360,8.56266528,144.22,144.19,1.51821265]
[1768625341546,8.56266528,144.22,144.19,3.586831]
[1768625347070,8.56201903,144.23,144.2,1.51821265]
[1768625347273,1.62862653,144.22,144.2,2.06861835]
[1768625347571,1.62862653,144.22,144.19,10.52190222]
[1768625359285,8.5624812,144.22,144.19,10.52190222]
[1768625360087,8.5624812,144.22,144.19,3.586831]
[1768625361088,8.5624812,144.22,144.19,1.51821265]
[1768625367372,1.55677755,144.21,144.19,1.51821265]
[1768625375807,1.55677755,144.21,144.18,10.5515021]
[1768625375971,1.55677755,144.21,144.19,1.54808339]
[1768625383988,1.56558442,144.22,144.19,1.54808339]
[1768625384189,18.90565952,144.24,144.21,1.54808339]
[1768625384391,1.56558442,144.24,144.21,1.54808339]
[1768625384795,1.56558442,144.24,144.2,3.61593767]
[1768625385497,1.56558442,144.23,144.2,2.06785428]
[1768625385997,1.56558442,144.23,144.2,9.00254895]
[1768625391495,1.56558442,144.23,144.2,10.58532405]
[1768625392920,1.64019823,144.24,144.21,1.5827751]
[1768625393119,6.93500498,144.26,144.24,1.5827751]
[1768625393323,1.64019823,144.28,144.25,3.65062938]
[1768625393504,1.64019823,144.28,144.26,2.06785428]
[1768625393706,8.57143659,144.28,144.26,2.06785428]
[1768625393923,10.84274718,144.3,144.27,1.5827751]
[1768625394127,0.2,144.3,144.28,1.5827751]
[1768625394428,8.77032242,144.3,144.28,1.5227751]
[1768625394614,8.77032242,144.3,144.27,2.00785428]
[1768625396333,8.77032242,144.3,144.27,3.59062938]
[1768625398128,8.77032242,144.3,144.27,1.5827751]
[1768625416554,1.64019823,144.29,144.26,3.65062938]
[1768625416949,1.64019823,144.29,144.27,1.5827751]
[1768625418248,8.77032242,144.3,144.27,1.5827751]
[1768625430667,8.77032242,144.3,144.25,1.64924216]
[1768625430668,1.54277693,144.29,144.25,1.64924216]
[1768625430963,1.54277693,144.29,144.25,3.71504017]
[1768625431264,1.54277693,144.29,144.25,1.64924216]
[1768625432363,6.93096756,144.28,144.25,1.64924216]
[1768625436747,6.93096756,144.28,144.26,1.64924216]
[1768625439165,8.47336216,144.29,144.26,1.64924216]
[1768625450586,1.54277693,144.28,144.24,1.64924216]
[1768625450794,1.54277693,144.27,144.23,1.64924216]
[1768625451172,1.54277693,144.27,144.23,3.71504017]
[1768625451490,8.47336216,144.29,144.26,3.71504017]
[1768625452478,8.47336216,144.29,144.26,1.64924216]
[1768625457496,1.54277693,144.29,144.26,8.58111117]
[1768625459998,8.47329393,144.29,144.26,8.58111117]
[1768625461006,8.47329393,144.29,144.26,1.64924216]
[1768625462800,5.18761846,144.28,144.26,1.64924216]
[1768625463006,8.47329393,144.29,144.26,1.64924216]
[1768625463706,1.5988972,144.28,144.26,1.64924216]
[1768625464387,6.930517,144.29,144.26,1.64924216]
[1768625464587,8.5294142,144.29,144.26,1.64924216]
[1768625472915,1.5988972,144.28,144.25,1.53019308]
[1768625475908,8.53011785,144.28,144.25,1.53019308]
[1768625494422,1.57973612,144.27,144.22,8.99975793]
[1768625494729,1.57973612,144.27,144.23,1.58002478]
[1768625495612,3.64603181,144.27,144.23,1.58002478]
[1768625495812,5.18948714,144.26,144.23,1.58002478]
[1768625496014,3.64603181,144.27,144.23,8.51336935]
[1768625496212,5.18948708,144.26,144.23,8.51336935]
[1768625496435,10.57769792,144.27,144.23,8.51336935]
[1768625496738,5.18858941,144.26,144.23,8.51336935]
[1768625496913,10.57769792,144.27,144.23,8.51336935]
[1768625497212,5.18858815,144.26,144.23,8.51336935]
[1768625497414,10.57769792,144.27,144.23,8.51336935]
[1768625497628,5.18748831,144.26,144.23,8.51336935]
[1768625497830,8.51167364,144.26,144.23,8.51336935]
[1768625499515,8.51167364,144.26,144.23,1.58002478]
[1768625499711,1.57973612,144.25,144.23,1.58002478]
[1768625499916,1.54973613,144.25,144.23,1.58002478]
[1768625500437,1.54973613,144.25,144.22,8.51368289]
[1768625501225,6.93243779,144.25,144.22,1.58002478]
[1768625501841,8.51217391,144.25,144.22,1.58002478]
[1768625504718,10.5784696,144.25,144.22,1.58002478]
[1768625505042,1.57973612,144.24,144.22,1.58002478]
[1768625505341,1.54973613,144.24,144.22,1.58002478]
[1768625505538,1.54973613,144.24,144.21,8.51414118]
[1768625505943,1.54973613,144.24,144.22,1.58002478]
[1768625507941,1.57973612,144.25,144.22,1.58002478]
[1768625510145,8.51216601,144.25,144.22,1.58002478]
[1768625514360,1.49279898,144.24,144.22,1.58002478]
[1768625515643,1.49279898,144.24,144.21,8.42421148]
[1768625523853,1.49279898,144.23,144.2,1.49009508]
[1768625526135,10.492686,144.23,144.2,1.49009508]
[1768625526335,8.42639031,144.23,144.2,1.49009508]
[1768625527570,1.49279898,144.22,144.18,1.49009508]
[1768625527856,2.06629569,144.22,144.18,1.49009508]
[1768625528054,1.49279898,144.21,144.18,8.42586631]
[1768625528253,1.46279899,144.21,144.18,8.42586631]
[1768625531066,1.432799,144.21,144.18,8.42586631]
[1768625534875,1.432799,144.21,144.18,6.93577123]
[1768625535952,1.432799,144.21,144.18,1.49009508]
[1768625542380,1.40279901,144.21,144.18,1.49009508]
[1768625545462,1.37279902,144.21,144.18,1.49009508]
[1768625545685,1.37279902,144.21,144.18,8.42586919]
[1768625551487,6.93406896,144.22,144.2,1.43718168]
[1768625555284,1.44460484,144.22,144.2,1.43718168]
[1768625558098,8.37851398,144.22,144.19,3.50549992]
[1768625565981,6.93390914,144.22,144.2,1.43718168]
[1768625567207,6.93337031,144.23,144.19,3.50549992]
[1768625567399,5.18302179,144.22,144.19,3.50549992]
[1768625567707,6.93337031,144.23,144.19,3.50549992]
[1768625567895,5.18303321,144.22,144.19,3.50549992]
[1768625568094,1.44460484,144.22,144.19,3.50549992]
[1768625568506,8.37848499,144.22,144.19,3.50549992]
[1768625568720,8.37801867,144.23,144.2,1.43718168]
[1768625568900,3.60777322,144.22,144.21,1.08756433]
[1768625569293,8.37771886,144.24,144.21,1.08756433]
[1768625570308,1.44460484,144.24,144.21,1.08756433]
[1768625570808,1.44460484,144.24,144.21,10.09010597]
[1768625582324,1.56250773,144.25,144.22,1.12137058]
[1768625582526,5.18266129,144.24,144.22,3.18968882]
[1768625582720,1.56250773,144.25,144.22,3.18968882]
[1768625582902,5.18267617,144.24,144.22,3.18968882]
[1768625583107,1.56250773,144.25,144.22,3.18968882]
[1768625583297,5.1821314,144.24,144.22,3.18968882]
[1768625583527,8.49507959,144.25,144.22,3.18968882]
[1768625583729,5.18197441,144.24,144.22,3.18968882]
[1768625583904,8.49507959,144.25,144.22,3.18968882]
[1768625584227,8.49423279,144.27,144.24,3.19377022]
[1768625584518,5.18198517,144.26,144.24,3.19377022]
[1768625584724,5.18198517,144.25,144.24,1.12545198]
[1768625587827,8.49423279,144.27,144.24,1.12545198]
[1768625588011,5.18063334,144.26,144.24,1.12545198]
[1768625588329,8.49423279,144.27,144.24,1.12545198]
[1768625588534,5.17995601,144.26,144.24,1.12545198]
[1768625588707,8.49423279,144.27,144.24,1.12545198]
[1768625588911,5.17995601,144.26,144.24,1.12545198]
[1768625589224,8.49423279,144.27,144.24,1.12545198]
[1768625589432,5.17906478,144.26,144.24,1.12545198]
[1768625589731,8.49423279,144.27,144.24,1.12545198]
[1768625589928,5.17906353,144.26,144.24,1.12545198]
[1768625590109,8.49423279,144.27,144.24,1.12545198]
[1768625590304,5.17914009,144.26,144.24,1.12545198]
[1768625590526,8.49423279,144.27,144.24,1.12545198]
[1768625590740,5.17874352,144.26,144.24,1.12545198]
[1768625590930,8.49423279,144.27,144.24,1.12545198]
[1768625591111,5.17874352,144.26,144.24,1.12545198]
[1768625591314,8.49423279,144.27,144.24,1.12545198]
[1768625591519,5.17859499,144.26,144.24,1.12545198]
[1768625591830,8.49423279,144.27,144.24,1.12545198]
[1768625592033,5.17859499,144.26,144.24,1.12545198]
[1768625592332,8.49423279,144.27,144.24,1.12545198]
[1768625592531,5.17852538,144.26,144.24,1.12545198]
[1768625592719,8.49423279,144.27,144.24,1.12545198]
[1768625593030,5.17852413,144.26,144.24,1.12545198]
[1768625593232,1.56250773,144.26,144.23,8.07606334]
[1768625593435,1.56250773,144.26,144.23,1.14269499]
[1768625598430,1.76250773,144.3,144.23,1.14269499]
[1768625598641,6.74161725,144.29,144.25,1.15152752]
[1768625598828,8.49299494,144.29,144.25,1.15152752]
[1768625601212,1.56250773,144.29,144.26,6.93192846]
[1768625602437,1.56250773,144.29,144.26,10.16011102]
[1768625602737,8.71238872,144.3,144.27,1.15986432]
[1768625603329,7.13021368,144.3,144.27,1.15986432]
[1768625603527,8.71238872,144.3,144.27,1.15986432]
[1768625606246,1.58217504,144.29,144.26,8.09812404]
[1768625610650,1.58217504,144.29,144.26,10.16388393]
[1768625613452,1.58217504,144.29,144.26,8.09812404]
[1768625615651,1.58217504,144.29,144.26,6.93192846]
[1768625619161,1.58217504,144.29,144.26,8.11811522]
[1768625629276,1.58217504,144.29,144.26,6.93192846]
[1768625641709,8.51277853,144.29,144.25,8.12789893]
[1768625641875,1.51986379,144.28,144.25,8.12789893]
[1768625642076,1.51986379,144.28,144.25,6.93224584]
[1768625642983,6.93096997,144.28,144.24,10.20187279]
[1768625643292,1.51986379,144.26,144.23,6.93301861]
[1768625643667,1.51986379,144.26,144.22,10.20332517]
[1768625643981,1.51986379,144.26,144.22,3.26967891]
[1768625645189,1.51986379,144.26,144.23,6.93320609]
[1768625645372,1.51986379,144.26,144.23,8.13812659]
[1768625646489,1.51986379,144.26,144.23,10.20388648]
[1768625654202,1.51986379,144.26,144.23,8.13812659]
[1768625661301,1.51986379,144.26,144.23,10.20388648]
[1768625665309,1.51986379,144.26,144.23,10.20484876]
[1768625677521,1.51986379,144.26,144.23,8.13812659]
[1768625695966,8.46962292,144.27,144.24,1.13721614]
[1768625699267,8.46962292,144.27,144.23,8.04494003]
[1768625699763,1.53814491,144.26,144.23,8.04494003]
[1768625701471,1.53814491,144.26,144.23,10.1116622]
[1768625702469,1.53814491,144.26,144.23,8.04494003]
[1768625707968,6.93147801,144.27,144.24,1.06414184]
[1768625708175,8.66822767,144.3,144.26,1.05849255]
[1768625708648,5.19070393,144.29,144.26,1.05849255]
[1768625708850,8.66822767,144.3,144.26,1.05849255]
[1768625709273,8.66822767,144.3,144.26,10.05697889]
[1768625709469,5.18859256,144.29,144.26,10.05697889]
[1768625709670,8.66822767,144.3,144.26,10.05697889]
[1768625710953,8.66822767,144.3,144.27,2.06672217]
[1768625714680,8.66822767,144.3,144.28,2.06672217]
[1768625715581,1.53814491,144.29,144.28,2.06672217]
[1768625716583,1.53814491,144.29,144.27,2.06672217]
[1768625719180,1.53814491,144.29,144.26,10.05697889]
[1768625725479,1.53814491,144.29,144.26,10.05589454]
[1768625731196,0.2,144.3,144.29,0.93653396]
[1768625731497,1.61039414,144.31,144.28,3.00217178]
[1768625732281,1.61039414,144.31,144.28,0.93653396]
[1768625733203,1.61039414,144.31,144.28,7.86724048]